bitfinex/quotes_ETHUSD_20251018
["timestamp","ask_amount","ask_price","bid_price","bid_amount"]
[1760767561675,1e-08,3879.1,3879.0,10.86685864]
[1760767562171,0.1103,3881.0,3879.9,4.30538601]
[1760767562376,7.899848,3880.0,3879.9,7.36038601]
[1760767562674,1e-08,3880.0,3879.9,7.36038601]
[1760767562873,1e-08,3880.0,3879.9,8.13524243]
[1760767565172,1e-08,3880.0,3879.9,8.26404243]
[1760767566208,0.1103,3881.4,3881.3,2.57645634]
[1760767566506,0.1103,3881.4,3881.3,4.30445634]
[1760767566712,0.1103,3881.4,3881.3,4.43325634]
[1760767566914,0.1103,3881.4,3881.3,4.83743028]
[1760767567415,0.1103,3881.9,3881.8,4.30406863]
[1760767567784,0.1103,3881.9,3881.8,4.43286863]
[1760767568409,0.15730232,3883.0,3881.8,4.43286863]
[1760767568410,0.1124,3883.0,3882.4,2.57568035]
[1760767568715,0.1124,3883.0,3882.6,0.128]
[1760767568916,0.1124,3883.0,3882.6,1.856]
[1760767569124,0.1124,3883.0,3882.6,0.128]
[1760767570144,0.1124,3883.0,3882.5,0.6]
[1760767570145,2.21244639,3882.9,3882.5,0.6]
[1760767570287,2.21244639,3882.9,3879.8,0.236]
[1760767570288,2.21244639,3882.9,3881.2,2.57651794]
[1760767570485,0.1103,3881.3,3881.2,2.57651794]
[1760767570829,0.1103,3881.3,3881.1,2.57657773]
[1760767571018,0.1103,3881.3,3881.2,0.77475036]
[1760767571315,0.1103,3881.3,3881.2,3.35127308]
[1760767572013,0.1103,3881.3,3881.2,5.07927308]
[1760767573418,0.1103,3881.3,3881.2,2.50275036]
[1760767573990,0.1103,3881.3,3881.2,0.77475036]
[1760767579265,0.1103,3881.3,3881.2,3.35127308]
[1760767579461,0.002,3881.4,3881.3,2.57645634]
[1760767580158,0.002,3881.4,3881.3,0.1288]
[1760767580535,0.002,3881.4,3881.3,2.70525634]
[1760767581432,0.002,3881.4,3881.3,2.83405634]
[1760767582477,0.002,3881.4,3881.3,3.1640209]
[1760767582778,0.002,3881.4,3881.3,2.70525634]
[1760767583941,0.002,3881.4,3881.3,3.13825634]
[1760767586256,0.002,3881.4,3881.3,2.70525634]
[1760767586740,0.002,3881.4,3881.3,3.13825634]
[1760767587481,0.002,3881.4,3881.3,2.70525634]
[1760767588670,0.002,3881.4,3881.3,3.13825634]
[1760767589044,0.002,3881.4,3881.3,2.70525634]
[1760767589878,0.002,3881.4,3881.3,3.14025634]
[1760767591589,0.002,3881.4,3881.3,2.70525634]
[1760767591893,0.002,3881.4,3881.3,3.14025634]
[1760767592256,0.002,3881.4,3881.3,2.70525634]
[1760767592456,0.002,3881.4,3881.3,2.83405634]
[1760767595904,0.002,3881.4,3881.3,0.2576]
[1760767596054,0.002,3881.4,3881.3,2.83405634]
[1760767596258,0.002,3881.4,3881.3,0.2576]
[1760767596259,0.101,3881.4,3881.3,0.2576]
[1760767596858,0.002,3881.4,3881.3,2.83405634]
[1760767606900,0.002,3881.4,3881.3,0.2576]
[1760767607302,0.002,3881.4,3881.3,2.83405634]
[1760767608506,0.002,3881.4,3881.3,3.26905634]
[1760767610685,0.002,3881.4,3881.3,3.2948209]
[1760767610911,0.002,3881.4,3881.3,3.26905634]
[1760767614422,0.002,3881.4,3881.3,3.2948209]
[1760767616328,0.002,3881.4,3881.3,3.26905634]
[1760767620308,0.101,3881.4,3881.3,0.1288]
[1760767621529,0.101,3881.4,3880.6,0.1103]
[1760767621729,0.101,3881.4,3879.5,0.4571]
[1760767621928,0.1288,3881.1,3880.4,0.1288]
[1760767622137,0.099,3881.0,3880.4,0.1288]
[1760767622332,0.1288,3881.1,3880.4,2.7058533]
[1760767622514,0.002,3881.4,3880.6,2.70571561]
[1760767622515,0.099,3881.2,3880.6,2.70571561]
[1760767623017,0.1288,3881.3,3880.7,2.57683467]
[1760767623217,0.1288,3881.3,3880.6,0.1288]
[1760767623423,0.099,3881.2,3880.6,0.1288]
[1760767623919,0.099,3881.2,3880.0,0.001]
[1760767623920,0.099,3881.1,3880.0,0.001]
[1760767624240,0.1288,3881.0,3880.3,0.1288]
[1760767624642,0.099,3880.9,3880.3,0.1288]
[1760767625140,0.1288,3880.5,3880.0,0.001]
[1760767625640,0.099,3880.4,3880.0,0.001]
[1760767626209,0.1288,3880.2,3880.0,0.001]
[1760767626616,0.099,3880.1,3880.0,0.001]
[1760767627919,1.827,3880.1,3880.0,0.001]
[1760767628119,1.87192876,3880.1,3880.0,0.001]
[1760767630149,1.87392876,3880.1,3880.0,0.001]
[1760767631052,1.829,3880.1,3880.0,0.001]
[1760767635467,1.87393138,3880.1,3880.0,0.001]
[1760767636265,1.829,3880.1,3880.0,0.001]
[1760767638155,1.87393152,3880.1,3880.0,0.001]
[1760767641180,1.73,3880.1,3880.0,0.001]
[1760767641365,1.77493097,3880.1,3880.0,0.001]
[1760767641781,1.73,3880.1,3880.0,0.001]
[1760767643096,0.002,3880.1,3880.0,0.001]
[1760767643301,0.002,3880.1,3880.0,0.4668]
[1760767643615,0.002,3880.1,3880.0,0.001]
[1760767643919,1.829,3880.1,3880.0,0.001]
[1760767644236,1.73,3880.1,3880.0,0.001]
[1760767644994,1.77492882,3880.1,3880.0,0.001]
[1760767645395,2.25950314,3880.1,3880.0,0.001]
[1760767645840,3.98750314,3880.1,3880.0,0.001]
[1760767646703,0.04692882,3880.1,3880.0,0.4668]
[1760767647387,0.04692882,3880.1,3880.0,0.001]
[1760767648189,0.04692882,3880.1,3880.0,0.4668]
[1760767651240,0.002,3880.1,3880.0,0.4668]
[1760767653537,0.002,3880.1,3880.0,3.04411958]
[1760767654417,0.002,3880.1,3880.0,0.4668]
[1760767654612,0.002,3880.1,3880.0,3.04411958]
[1760767656443,0.002,3880.1,3880.0,3.06989277]
[1760767656644,0.002,3880.1,3880.0,3.04411958]
[1760767656820,0.002,3880.1,3880.0,3.17291958]
[1760767657454,0.002,3880.1,3880.0,3.27625218]
[1760767662266,0.002,3880.1,3880.0,3.30202537]
[1760767662631,0.002,3880.1,3880.0,3.27625218]
[1760767662854,0.002,3880.1,3880.0,3.30202537]
[1760767663248,0.002,3880.1,3880.0,3.27625218]
[1760767663655,0.002,3880.1,3880.0,5.00425218]
[1760767663963,0.002,3880.1,3880.0,5.03002537]
[1760767664732,0.002,3880.1,3880.0,5.00425218]
[1760767664932,0.002,3880.1,3880.0,3.27625218]
[1760767667355,0.002,3880.1,3880.0,0.001]
[1760767670155,0.101,3880.1,3880.0,0.001]
[1760767670760,2.31357432,3880.1,3880.0,0.001]
[1760767678067,4.4459075,3880.1,3880.0,0.001]
[1760767679359,7.02316066,3880.1,3880.0,0.001]
[1760767679559,2.21257432,3879.7,3879.6,0.001]
[1760767680168,4.44403707,3879.7,3879.6,0.001]
[1760767680798,4.34493707,3879.7,3879.6,0.001]
[1760767681203,4.44403707,3879.7,3879.6,0.001]
[1760767681712,4.44403707,3879.7,3879.2,0.001]
[1760767681713,2.21257432,3879.3,3879.2,0.001]
[1760767682066,7.74808543,3879.3,3879.2,0.001]
[1760767682367,9.47608543,3879.3,3879.2,0.001]
[1760767682568,7.26351111,3879.3,3879.2,0.001]
[1760767682789,6.89830078,3879.3,3879.2,0.001]
[1760767683108,5.17030078,3879.3,3879.2,0.001]
[1760767683294,7.74808543,3879.3,3879.2,0.001]
[1760767683604,7.74808543,3879.3,3878.8,0.001]
[1760767683605,2.57799269,3879.0,3878.8,0.001]
[1760767683795,4.79062479,3878.9,3878.8,0.001]
[1760767683971,2.31167432,3878.9,3878.8,0.001]
[1760767684367,2.35661795,3878.9,3878.8,0.001]
[1760767685171,4.93466842,3878.9,3878.8,0.001]
[1760767685597,5.58072056,3878.9,3878.8,0.001]
[1760767685802,3.00267009,3878.9,3878.8,0.001]
[1760767686188,5.58072056,3878.9,3878.8,0.001]
[1760767686380,3.00267009,3878.9,3878.8,0.001]
[1760767687304,4.73067009,3878.9,3878.8,0.001]
[1760767687886,1.77294363,3878.9,3878.8,0.001]
[1760767688087,3.98551795,3878.9,3878.8,0.001]
[1760767688779,1.77294363,3878.9,3878.8,0.001]
[1760767689089,1.87204363,3878.9,3878.8,0.001]
[1760767689287,2.51809577,3878.9,3878.8,0.001]
[1760767689491,5.09614624,3878.9,3878.8,0.001]
[1760767691009,2.51809577,3878.9,3878.8,0.001]
[1760767691706,1.77294363,3878.9,3878.8,0.001]
[1760767693025,1.87204363,3878.9,3878.8,0.001]
[1760767695122,1.77294363,3878.9,3878.8,0.001]
[1760767695837,3.98551795,3878.9,3878.8,0.001]
[1760767698643,3.98551795,3878.9,3878.8,0.472]
[1760767704672,3.98551795,3878.9,3878.8,0.001]
[1760767704880,3.98551795,3878.9,3878.4,0.001]
[1760767704881,2.57824064,3878.7,3878.4,0.001]
[1760767705032,2.21257432,3878.5,3878.4,0.001]
[1760767705233,4.58662646,3878.5,3878.4,0.001]
[1760767705666,4.6315748,3878.5,3878.4,0.001]
[1760767707359,5.07690274,3878.5,3878.4,0.001]
[1760767708067,5.48138577,3878.5,3878.4,0.001]
[1760767709785,4.83533363,3878.5,3878.4,0.001]
[1760767709991,4.83533363,3878.5,3878.4,0.4449]
[1760767710157,4.83533363,3878.5,3878.4,0.001]
[1760767712562,5.58048577,3878.5,3878.4,0.001]
[1760767713167,5.48138577,3878.5,3878.4,0.001]
[1760767714985,5.16219888,3878.5,3878.4,0.001]
[1760767717388,4.83533363,3878.5,3878.4,0.001]
[1760767720793,1.728,3878.4,3878.1,0.001]
[1760767721016,0.35262022,3878.3,3878.1,0.001]
[1760767723479,0.002,3879.6,3878.2,0.6671]
[1760767723666,0.002,3879.6,3879.1,0.2232]
[1760767724176,0.002,3879.6,3879.1,0.6671]
[1760767724563,0.04493886,3879.3,3879.1,0.6671]
[1760767724799,1.72693886,3879.9,3879.1,0.6671]
[1760767725002,0.04493894,3879.4,3879.1,0.6671]
[1760767725328,0.13466024,3880.0,3879.2,0.4439]
[1760767725658,0.04493886,3879.4,3879.2,0.4439]
[1760767725825,0.13466024,3880.0,3879.1,0.2232]
[1760767725826,0.002,3880.0,3879.1,0.2232]
[1760767726142,0.002,3880.0,3879.3,0.4439]
[1760767727700,0.40635179,3880.0,3879.3,0.4439]
[1760767728418,0.04493734,3879.9,3879.3,0.4439]
[1760767729830,0.40635179,3880.0,3879.3,0.4439]
[1760767734043,0.04493712,3879.9,3879.3,0.4439]
[1760767740017,6.43493712,3879.9,3879.3,0.4439]
[1760767740224,1.728,3879.8,3879.3,0.4439]
[1760767740557,1.728,3879.8,3879.4,0.4514]
[1760767740920,0.04493712,3879.9,3879.5,0.4514]
[1760767741330,0.04493712,3879.9,3879.1,0.2232]
[1760767741533,0.40635179,3880.0,3879.6,0.4514]
[1760767741732,0.002,3880.0,3879.6,0.4514]
[1760767743457,0.1288,3879.8,3879.6,0.4514]
[1760767744329,0.002,3880.0,3879.6,0.4514]
[1760767744630,0.1308,3880.0,3879.6,0.4514]
[1760767744831,0.1308,3880.0,3879.6,3.02894016]
[1760767745057,0.1308,3880.0,3879.7,0.4627]
[1760767745434,0.1308,3880.0,3879.7,3.04021088]
[1760767745761,0.1308,3880.0,3879.8,0.4627]
[1760767748173,0.1308,3880.0,3879.8,3.0401484]
[1760767748688,0.1308,3880.0,3879.9,0.4627]
[1760767750539,0.1308,3880.0,3879.9,3.04008601]
[1760767750876,0.002,3880.1,3880.0,2.57731958]
[1760767751085,0.002,3880.8,3880.4,4.30505391]
[1760767751263,0.002,3880.8,3880.7,2.57685469]
[1760767751644,3.26508336,3882.9,3880.7,0.48846854]
[1760767751870,0.6110996,3882.9,3880.7,0.48846854]
[1760767752174,0.6110996,3882.9,3881.9,2.57604899]
[1760767752378,0.6110996,3882.9,3882.0,0.6811]
[1760767752678,0.204,3883.1,3882.1,0.4627]
[1760767753048,2.65398376,3883.4,3882.1,0.4627]
[1760767753474,1.728,3883.3,3882.1,0.48845925]
[1760767753847,0.04489479,3883.1,3882.1,0.48845925]
[1760767754050,0.04489479,3883.1,3882.1,0.4627]
[1760767759552,0.04489479,3883.1,3882.1,3.0386211]
[1760767759751,0.04489479,3883.1,3882.2,0.4627]
[1760767760348,0.04489479,3883.1,3882.3,0.02575792]
[1760767760549,0.04489479,3883.1,3882.4,0.4627]
[1760767760949,0.128,3883.0,3882.4,0.5907]
[1760767761153,0.128,3883.2,3882.6,0.128]
[1760767761394,0.128,3883.2,3882.7,0.4627]
[1760767761587,0.128,3883.2,3883.1,0.2184]
[1760767761787,0.128,3883.2,3883.1,0.6811]
[1760767766852,0.128,3883.2,3882.6,0.128]
[1760767767055,0.128,3883.2,3882.7,0.4627]
[1760767767359,0.128,3883.2,3882.8,0.4627]
[1760767767657,0.128,3883.2,3882.6,0.128]
[1760767767658,0.128,3883.2,3882.9,0.4627]
[1760767768861,0.128,3883.2,3882.6,0.128]
[1760767769222,0.128,3883.2,3882.6,2.70359286]
[1760767769461,0.128,3883.5,3882.9,0.128]
[1760767769757,0.002,3883.2,3883.0,0.4361]
[1760767770126,0.002,3883.2,3883.1,0.4361]
[1760767771855,0.002,3883.2,3883.1,3.01136203]
[1760767773749,0.002,3883.2,3883.1,0.4361]
[1760767773955,0.002,3883.2,3883.1,3.01136203]
[1760767777067,0.002,3883.2,3882.9,0.128]
[1760767777382,0.002,3883.2,3883.0,0.4361]
[1760767777949,0.002,3883.2,3882.9,2.70337679]
[1760767777950,0.002,3883.2,3882.9,0.128]
[1760767778150,0.002,3883.2,3882.5,3.23014458]
[1760767778355,0.002,3883.2,3882.6,3.01164714]
[1760767779566,0.002,3883.2,3882.7,2.57551948]
[1760767779735,0.002,3883.2,3882.6,3.01167675]
[1760767780063,0.002,3883.2,3882.6,0.4361]
[1760767780268,0.002,3883.2,3882.5,0.4355]
[1760767780445,0.002,3883.2,3880.8,2.70587787]
[1760767780446,0.2024,3882.6,3881.6,0.4361]
[1760767780645,0.2024,3882.6,3881.5,0.10329351]
[1760767780863,0.2024,3882.6,3881.4,3.01248177]
[1760767780864,0.1022,3882.5,3881.4,3.01248177]
[1760767781062,0.1022,3882.5,3881.5,3.01242193]
[1760767781279,0.2024,3882.6,3881.6,0.4361]
[1760767781587,0.2024,3882.6,3881.8,2.57607457]
[1760767781790,0.128,3882.9,3882.2,0.128]
[1760767782495,0.3304,3882.9,3882.2,0.128]
[1760767782656,0.099,3882.8,3881.0,0.2184]
[1760767782858,0.128,3882.6,3881.9,0.128]
[1760767783479,0.099,3882.5,3881.9,0.128]
[1760767784190,0.128,3882.1,3881.5,0.1288]
[1760767785177,0.128,3882.1,3881.6,0.4361]
[1760767785491,0.14390042,3882.7,3881.9,0.1288]
[1760767785492,0.128,3882.5,3881.9,0.1288]
[1760767786165,0.227,3882.5,3881.9,0.1288]
[1760767786556,0.099,3882.5,3881.4,0.4361]
[1760767786757,0.099,3882.5,3881.0,2.79500875]
[1760767786758,0.128,3882.1,3881.5,0.1288]
[1760767786959,0.227,3882.1,3881.5,0.1288]
[1760767787401,0.128,3882.1,3881.5,0.1288]
[1760767787558,0.128,3882.1,3881.6,0.4361]
[1760767787759,0.128,3882.1,3881.5,0.1288]
[1760767790489,2.33596933,3882.1,3881.5,0.1288]
[1760767790700,0.1102,3881.6,3881.2,0.1288]
[1760767790865,0.2092,3881.6,3881.2,0.1288]
[1760767791069,0.2092,3881.6,3880.7,0.4361]
[1760767791070,0.1288,3881.4,3880.7,0.5649]
[1760767792798,0.1288,3881.4,3880.8,0.02676788]
[1760767793004,0.002,3883.6,3883.1,2.57526203]
[1760767793212,0.002,3883.6,3883.1,5.08506203]
[1760767793407,0.002,3883.6,3883.1,0.80755262]
[1760767793699,0.002,3883.6,3883.1,0.6538]
[1760767793874,0.002,3883.6,3883.1,0.32095951]
[1760767794077,0.002,3883.6,3883.1,3.33232154]
[1760767796713,0.002,3883.6,3883.1,2.67852154]
[1760767796891,0.002,3883.6,3883.1,2.57526203]
[1760767797292,0.002,3883.6,3882.7,2.57552064]
[1760767797293,0.2286,3883.2,3882.7,2.57552064]
[1760767797501,0.2286,3883.2,3882.8,2.57543976]
[1760767798216,0.2286,3883.2,3882.9,2.57538761]
[1760767798708,0.002,3883.2,3882.9,2.57538761]
[1760767802309,0.002,3883.2,3882.6,2.57559367]
[1760767802515,0.002,3883.2,3883.0,2.57532783]
[1760767802809,0.002,3883.2,3883.0,2.57527527]
[1760767803380,0.002,3883.2,3883.1,2.57526203]
[1760767803786,0.002,3883.2,3883.1,0.7079]
[1760767804002,0.002,3883.2,3883.1,3.41116203]
[1760767805714,0.002,3883.2,3883.1,0.128]
[1760767805715,0.2356,3883.2,3883.1,0.128]
[1760767805917,0.2356,3883.2,3882.5,0.2203]
[1760767805918,0.3636,3883.2,3882.6,2.57558582]
[1760767806294,0.3636,3883.2,3882.7,2.57551987]
[1760767806488,0.3636,3883.2,3882.5,0.128]
[1760767806489,0.13,3883.2,3882.6,2.57559367]
[1760767806924,0.13,3883.2,3882.9,2.57538724]
[1760767807827,0.13,3883.2,3882.9,3.02888724]
[1760767808192,0.13,3883.2,3882.7,2.57546112]
[1760767808390,0.13,3883.2,3882.5,0.5815]
[1760767808619,0.13,3883.2,3882.8,2.57545529]
[1760767809107,0.13,3883.2,3882.9,2.57536515]
[1760767809307,0.13,3883.2,3882.6,2.5755868]
[1760767809308,0.13,3883.2,3882.8,2.5754153]
[1760767809934,0.002,3883.2,3883.1,2.57526203]
[1760767810296,0.002,3883.2,3883.1,3.02876203]
[1760767810519,0.002,3883.2,3883.1,3.15676203]
[1760767810715,0.002,3883.2,3883.1,0.128]
[1760767810920,0.002,3883.2,3883.1,2.70326203]
[1760767811124,0.2355,3883.2,3882.8,1.728]
[1760767811338,0.2355,3883.2,3882.8,2.57545709]
[1760767812130,0.2355,3883.2,3882.7,0.128]
[1760767812529,0.2355,3883.2,3882.8,2.57544456]
[1760767812733,0.2355,3883.2,3882.7,2.70346178]
[1760767812932,0.2355,3883.2,3882.8,2.5754375]
[1760767813628,0.2335,3883.1,3882.7,0.128]
[1760767814221,0.002,3883.2,3882.7,0.128]
[1760767814422,0.002,3883.2,3882.9,2.57537257]
[1760767815751,0.002,3883.2,3882.8,2.5753992]
[1760767815924,0.002,3883.2,3882.9,2.57535025]
[1760767816430,0.002,3883.2,3882.7,0.128]
[1760767816645,0.002,3883.2,3882.8,2.57543566]
[1760767816957,0.002,3883.2,3882.9,2.57539154]
[1760767817552,0.002,3883.2,3883.0,2.575324]
[1760767818039,0.002,3883.2,3882.8,3.02895817]
[1760767818235,0.002,3883.2,3882.9,2.57539467]
[1760767818449,0.002,3883.2,3883.1,2.57526203]
[1760767819829,0.002,3883.2,3883.1,3.02876203]
[1760767822483,0.002,3883.2,3883.1,2.57526203]
[1760767824176,0.002,3883.2,3882.4,0.4535]
[1760767824470,0.2309,3883.1,3882.5,2.57559913]
[1760767824648,0.2309,3883.1,3882.8,0.002]
[1760767825035,0.002,3883.2,3882.8,0.002]
[1760767825738,0.2329,3883.2,3882.8,0.002]
[1760767827583,0.2329,3883.2,3882.8,2.57744911]
[1760767827946,0.3609,3883.2,3882.9,2.57538723]
[1760767828370,0.13,3883.2,3882.9,2.57538723]
[1760767828577,0.13,3883.2,3882.8,0.02775461]
[1760767828755,0.13,3883.2,3882.9,2.57539467]
[1760767829181,0.13,3883.2,3882.8,3.03094195]
[1760767830159,0.13,3883.2,3882.8,2.57744195]
[1760767831381,0.13,3883.2,3882.9,2.57538422]
[1760767832067,0.13,3883.2,3882.8,0.002]
[1760767832269,0.3399,3883.1,3882.8,0.002]
[1760767832653,2.0679,3883.1,3882.8,0.002]
[1760767834667,0.39538244,3883.0,3882.8,0.002]
[1760767834854,0.76138049,3883.0,3882.8,0.002]
[1760767835058,0.1087,3882.9,3882.8,0.002]
[1760767835293,2.23208244,3882.9,3882.8,0.002]
[1760767835471,2.59808049,3882.9,3882.8,0.002]
[1760767835876,0.50408244,3882.9,3882.8,0.002]
[1760767836764,2.23208244,3882.9,3882.8,0.002]
[1760767837367,0.50408244,3882.9,3882.8,0.002]
[1760767839190,0.1087,3882.9,3882.8,0.002]
[1760767839399,0.04490186,3883.0,3882.8,0.002]
[1760767839559,0.1087,3882.9,3882.8,0.002]
[1760767840172,0.04490186,3883.0,3882.8,0.002]
[1760767840786,0.40406409,3883.1,3882.8,0.002]
[1760767841684,0.002,3883.2,3882.8,0.002]
[1760767842114,0.002,3883.2,3882.9,0.4688]
[1760767842612,0.002,3883.2,3882.8,0.002]
[1760767842805,0.002,3883.2,3882.9,0.4688]
[1760767843908,0.128,3882.9,3882.8,0.002]
[1760767844068,0.128,3882.9,3882.8,0.4708]
[1760767847810,0.128,3882.9,3882.8,0.002]
[1760767848982,0.4583,3882.9,3882.8,0.002]
[1760767849584,0.4433,3882.9,3882.8,0.002]
[1760767850278,0.113,3882.9,3882.8,0.002]
[1760767853114,0.225,3882.9,3882.8,0.002]
[1760767853304,0.113,3882.9,3882.8,0.002]
[1760767854083,0.225,3882.9,3882.8,0.002]
[1760767854283,0.113,3882.9,3882.8,0.002]
[1760767855108,0.113,3882.9,3882.8,0.4708]
[1760767855318,0.113,3882.9,3882.8,0.002]
[1760767855514,0.4432,3882.9,3882.8,0.002]
[1760767856017,0.4443,3882.9,3882.8,0.002]
[1760767856923,0.113,3882.9,3882.8,0.002]
[1760767857220,0.04689325,3883.2,3882.8,0.002]
[1760767857601,0.14589325,3883.2,3882.8,0.002]
[1760767858990,0.04689325,3883.2,3882.8,0.002]
[1760767859696,0.04689325,3883.2,3882.8,0.4609]
[1760767860124,0.04689325,3883.2,3882.8,0.002]
[1760767860329,0.14589325,3883.2,3882.8,0.002]
[1760767860625,0.099,3883.1,3882.8,0.002]
[1760767860830,0.002,3882.9,3882.8,0.002]
[1760767862536,0.3312,3882.9,3882.8,0.002]
[1760767862731,2.5759254,3882.1,3882.0,0.002]
[1760767862931,2.5759254,3882.1,3879.9,0.40399202]
[1760767862932,1.728,3881.7,3879.9,0.40399202]
[1760767863093,4.30399377,3882.0,3880.3,0.4589]
[1760767863094,2.57613385,3881.8,3880.3,0.4589]
[1760767863424,0.51541668,3881.6,3880.3,0.4589]
[1760767863611,0.2478,3882.0,3880.8,0.4599]
[1760767864140,0.2227,3881.9,3880.8,0.4599]
[1760767864436,1.728,3882.6,3881.2,2.57652145]
[1760767864437,0.2478,3882.6,3881.2,2.57652145]
[1760767864644,0.158,3882.5,3881.3,0.6816]
[1760767864838,0.158,3882.5,3881.3,0.2227]
[1760767865137,0.158,3882.5,3881.4,0.4445]
[1760767865939,0.0449048,3882.3,3881.4,0.4445]
[1760767866414,0.0449048,3882.3,3881.3,0.40605195]
[1760767866415,0.2469,3882.2,3881.3,0.40605195]
[1760767866943,0.0449048,3882.3,3881.4,0.4445]
[1760767867127,0.0449048,3882.3,3881.4,3.02085271]
[1760767867128,0.1288,3881.8,3881.4,3.02085271]
[1760767867331,0.1288,3881.8,3881.3,0.40605195]
[1760767867332,0.1288,3881.8,3881.5,0.4445]
[1760767867568,0.1288,3881.8,3881.6,2.57624181]
[1760767867731,0.0449048,3882.3,3881.6,2.57624181]
[1760767867732,0.0449048,3882.3,3881.7,0.4445]
[1760767870709,0.0449048,3882.3,3881.7,3.02068034]
[1760767870938,0.1589,3882.8,3881.8,0.4445]
[1760767871619,0.4049,3882.8,3881.3,0.40605195]
[1760767871838,0.246,3882.7,3881.4,0.4445]
[1760767872020,0.246,3882.7,3881.5,2.57628805]
[1760767872226,0.246,3882.7,3881.6,0.4445]
[1760767872441,0.04489978,3882.5,3881.6,0.4445]
[1760767873224,0.04489978,3882.5,3881.7,0.246]
[1760767873740,0.04489978,3882.5,3881.8,0.4445]
[1760767873945,0.04489978,3882.5,3881.8,3.02061556]
[1760767874245,0.40605195,3882.9,3881.6,2.57625226]
[1760767874246,0.40605195,3882.9,3881.9,3.02055689]
[1760767874446,0.40605195,3882.9,3882.0,0.4445]
[1760767874747,0.40605195,3882.9,3882.1,0.2368]
[1760767874928,0.40605195,3882.9,3882.3,2.57577608]
[1760767875260,0.40605195,3882.9,3882.4,0.4445]
[1760767875630,0.40605195,3882.9,3882.4,0.85055195]
[1760767875830,0.40605195,3882.9,3882.5,0.4445]
[1760767876126,0.002,3882.9,3882.4,0.40605195]
[1760767876853,0.3795,3882.8,3882.1,0.2368]
[1760767877018,0.3795,3882.8,3882.2,0.2700935]
[1760767877621,0.27009781,3882.8,3882.2,0.2700935]
[1760767877829,0.128,3882.4,3882.2,0.2700935]
[1760767878043,0.128,3882.4,3882.3,0.4445]
[1760767878362,0.04489781,3882.8,3882.3,0.4445]
[1760767878532,0.128,3882.7,3882.2,2.84590315]
[1760767878732,0.128,3882.7,3882.3,0.4445]
[1760767878938,0.128,3882.7,3882.2,2.84590315]
[1760767879271,0.128,3882.7,3882.3,0.4445]
[1760767879449,0.128,3882.7,3882.2,0.2700935]
[1760767879647,0.128,3882.2,3881.7,2.1725]
[1760767879824,0.128,3882.2,3882.0,0.2258]
[1760767880225,0.128,3882.2,3881.8,0.4445]
[1760767880463,0.128,3882.2,3881.9,0.1564]
[1760767880656,0.128,3882.2,3882.0,0.4445]
[1760767881443,0.128,3882.2,3882.1,0.6813]
[1760767882861,0.128,3882.2,3882.1,3.2572254]
[1760767883160,0.128,3882.2,3882.1,0.6813]
[1760767883962,0.128,3882.2,3882.1,3.2572254]
[1760767884166,0.128,3882.2,3882.1,0.6813]
[1760767884662,0.128,3882.2,3881.9,0.6009]
[1760767884850,0.128,3882.2,3882.0,3.0204802]
[1760767885055,0.128,3882.2,3882.1,0.6813]
[1760767886345,0.128,3882.2,3881.9,0.1564]
[1760767886550,0.128,3882.2,3881.6,0.5743]
[1760767886966,0.2265,3882.9,3881.6,0.001]
[1760767887158,0.1288,3881.8,3881.6,0.001]
[1760767887358,0.1288,3881.8,3881.7,0.2265]
[1760767887755,0.1288,3881.8,3881.6,0.001]
[1760767889039,0.128,3882.1,3881.7,0.444]
[1760767889239,0.128,3882.1,3881.6,0.001]
[1760767889972,0.128,3882.1,3881.7,2.5761823]
[1760767890177,0.128,3882.1,3881.8,3.02010678]
[1760767890362,0.128,3882.1,3881.8,0.444]
[1760767890867,0.128,3882.1,3881.8,3.02010711]
[1760767891949,0.128,3882.1,3881.9,0.444]
[1760767892347,0.128,3882.1,3882.0,0.444]
[1760767892660,0.128,3882.1,3882.0,3.01999175]
[1760767893057,0.128,3882.1,3882.0,0.444]
[1760767893275,0.128,3882.1,3882.0,3.01999175]
[1760767893636,0.128,3882.1,3882.0,0.444]
[1760767894064,0.0449001,3882.7,3882.0,3.04569641]
[1760767894274,0.128,3882.3,3882.0,3.04569641]
[1760767894573,0.128,3882.3,3882.1,0.444]
[1760767894974,0.128,3882.3,3882.1,0.6812]
[1760767897679,0.001,3882.2,3882.1,0.6812]
[1760767902447,0.001,3882.2,3882.0,2.57798859]
[1760767902879,0.001,3882.2,3882.1,2.5759254]
[1760767903687,0.001,3882.2,3882.0,2.57796703]
[1760767904157,0.001,3882.2,3882.1,3.2571254]
[1760767904494,0.001,3882.2,3882.1,3.41088465]
[1760767906065,0.001,3882.2,3882.1,3.3851254]
[1760767907484,0.001,3882.2,3882.1,3.41088465]
[1760767908574,0.001,3882.2,3882.1,3.3851254]
[1760767910253,0.001,3882.2,3882.1,3.41088465]
[1760767912183,0.001,3882.2,3882.1,3.3851254]
[1760767917482,0.001,3882.2,3882.1,2.8131254]
[1760767917675,0.001,3882.2,3882.1,2.5759254]
[1760767921057,0.001,3882.2,3882.1,2.7947254]
[1760767921256,0.001,3882.2,3882.1,3.3902254]
[1760767925113,0.001,3882.2,3882.1,2.7039254]
[1760767925785,0.001,3882.2,3882.1,3.1561254]